Cogmind - Beta 15 @@@ ROGUE MODE // 2025.05.24 @ 23:42:21 Player: amhumam Result: Destroyed by DH-28T(R) with Subdweller Machine Gun Performance ------------- Evolutions (0) 0 Regions Visited (2) 400 Robots Destroyed (23) 115 Value Destroyed (638) 638 Prototype IDs (4) 80 Alien Tech Used (0) 0 Bonus (0) 0 TOTAL SCORE: 1233 Bonus ------- None Cogmind --------- Core Integrity 0/250 Matter 262/300 Energy 55/100 System Corruption 2% Temperature Cool (0) Movement Rolling (110) Ox2 Location -10/Subcaves Parts ------- > --- POWER (1) -------- (None) > --- PROPULSION (2) --- Wheel > --- UTILITY (2) ------ Scrap Shield > --- WEAPON (2) ------- Subdweller Laser Assault Rifle > --- INVENTORY (5) ---- Subdweller Optics Scrap Shield Mining Claw Peak State ------------ > --- POWER ------------ Makeshift Power Source > --- PROPULSION ------- Light Treads Wheel > --- UTILITY ---------- Large Storage Unit Light Armor Plating > --- WEAPON ----------- EM Pulse Gun Assault Rifle > --- INVENTORY -------- Light Ion Engine Light Ion Engine Wheel Heat Sink High-capacity Matter Pod Light Armor Plating EM Pulse Gun Assault Rifle Assault Rifle Assault Rifle Light Assault Rifle Datajack Mining Claw [Rating: 11] Favorites ----------- Power Light Ion Engine Engine Light Ion Engine Propulsion Light Treads Treads Light Treads Wheel Wheel Utility Large Storage Unit Storage Large Storage Unit Protection Light Armor Plating Weapon Assault Rifle Energy Gun EM Pulse Gun Ballistic Gun Assault Rifle Slashing Weapon Mining Claw Build | -11 -10 -10 ------- Run | Yrd Mat Sub Slots Evolved . | . . . Power . | . . . Propulsion . | . . . Utility . | . . . Weapon . | . . . Parts Attached 20 | 6 5 9 Power 3 | 1 1 1 Engine 3 | 1 1 1 Core . | . . . Reactor . | . . . Propulsion 4 | 2 . 2 Treads 2 | 2 . . Leg . | . . . Wheel 2 | . . 2 Hover . | . . . Flight . | . . . Utility 5 | 1 2 2 Device . | . . . Storage 2 | 1 1 . Processor . | . . . Hackware . | . . . Protection 3 | . 1 2 Artifact . | . . . Weapon 8 | 2 2 4 Energy Gun 2 | . 1 1 Energy Cannon . | . . . Ballistic Gun 5 | 2 1 2 Ballistic Cannon . | . . . Launcher . | . . . Special Weapon . | . . . Impact Weapon . | . . . Slashing Weapon 1 | . . 1 Piercing Weapon . | . . . Special Melee Weapon . | . . . Unidentified Prototypes . | . . . Parts Lost 11 | . 3 8 Power 3 | . 1 2 Propulsion 3 | . . 3 Utility 2 | . . 2 Weapon 3 | . 2 1 Highest Loss Streak 6 | . 2 6 To Critical Strikes . | . . . Average Backups 8 | . 6 12 Power 1 | . 1 1 Propulsion . | . . . Utility 2 | . 1 4 Weapon 3 | . 3 5 Tool/Special . | . . . Unused Backups 13 | . 2 11 Power 1 | . . 1 Propulsion . | . . . Utility 6 | . . 6 Weapon 4 | . 1 3 Tool/Special 2 | . 1 1 Average Slot Usage (%) 94 | . 99 83 Engine 12 | . 14 10 Treads 20 | . 28 5 Wheel 3 | . . 10 Storage 22 | . 26 13 Protection 5 | . 1 14 Energy Gun 7 | . 4 14 Ballistic Gun 19 | . 23 12 Peak Build Rating 11 | 6 8 11 Average Rating 7 | 4 7 7 On Entrance 4 | . 6 8 Naked Turns . | . . . Heaviest Build 32 | 12 32 32 Greatest Support 40 | 40 40 40 Greatest Overweight (x) 3 | . . 3 Average Overweight (x) . | . . 2 Largest Inventory Capacity 15 | 8 15 15 Average Capacity 14 | 7 14 14 Most Carried 15 | 2 15 15 Average Carried 8 | 1 6 13 Final Capacity 15 | 8 15 5 Final Carried 13 | 2 13 4 Class Distribution -------------------- 100% | Mutant Dominant Class ---------------- Mutant | -10/Materials Mutant | -10/Subcaves Resources | -11 -10 -10 ----------- Run | Yrd Mat Sub Matter Collected 880 | 219 411 250 Remotely . | . . . Salvage Created 798 | . 476 322 Parts 47 | . 27 20 Haulers Intercepted . | . . . Recyclers Shooed . | . . . Parts Field Recycled . | . . . Retrieved Matter . | . . . Parts Self-Destructed 8 | . . 8 Prevented . | . . . Kills | -11 -10 -10 ------- Run | Yrd Mat Sub Combat Hostiles Destroyed 22 | . 14 8 Guns 21 | . 13 8 AOE 1 | . 1 . Classes Destroyed 4 | . 3 1 Operator 1 | . 1 . Swarmer 8 | . 5 3 Grunt 9 | . 9 . Subdweller 5 | . . 5 Best Kill Streak 4 | . 4 3 Combat Bots Only 3 | . 3 3 Max Kills in Single Turn 1 | . 1 1 Gunslinging . | . . . Exploded 1 | . 1 . Melee . | . . . Uniques/NPCs Destroyed . | . . . Combat | -11 -10 -10 -------- Run | Yrd Mat Sub Hostile Shots Fired 135 | . 83 52 Missed 33 | . 23 10 Hits 102 | . 60 42 Projectile 102 | . 60 42 Damage Taken 1443 | . 711 732 Core 257 | . 151 106 Absorbed by Shields . | . . . Core Remaining (%) 100 | 100 . . Volleys Fired 81 | . 42 39 Largest 2 | . 2 2 Hottest 80 | . 60 80 Shots Fired 156 | . 84 72 Gun 156 | . 84 72 Cannon . | . . . Launcher . | . . . Special . | . . . Kinetic 105 | . 74 31 Thermal 22 | . . 22 Explosive . | . . . Electromagnetic 29 | . 10 19 Robot Hit Streak 37 | . 10 37 Robot Miss Streak 3 | . 3 2 Penetration Max . | . . . Secondary Targets . | . . . Shots Hit Robots 110 | . 56 54 Core Hits 40 | . 24 16 Critical Kills . | . . . Critical Parts Destroyed . | . . . Critical Strikes 1 | . . 1 Destroy 1 | . . 1 Melee Attacks 6 | . . 6 Impact . | . . . Slashing 6 | . . 6 Piercing . | . . . Sneak Attacks . | . . . Combat Hostiles . | . . . Follow-up Attacks . | . . . Damage Inflicted 1589 | . 875 714 Guns 1504 | . 790 714 Cannons . | . . . Explosions 85 | . 85 . Melee . | . . . Ramming . | . . . Kinetic 981 | . 692 289 Thermal 313 | . 85 228 Explosive . | . . . Electromagnetic 295 | . 98 197 Impact . | . . . Slashing . | . . . Piercing . | . . . Highest Corruption 2 | . 2 2 Average Corruption 1 | . 1 2 Corruption Purged . | . . . Corruption Blocked . | . . . Effects 10 | . 2 8 Message Errors 2 | . 1 1 Matter Fused 4 | . 1 3 Heat Flow Errors 1 | . . 1 Parts Rejected 1 | . . 1 Misfires 2 | . . 2 Overload Shots . | . . . Overflow Damage . | . . . Projectiles . | . . . Explosions . | . . . Melee . | . . . Knockbacks . | . . . Impact . | . . . Kinetic . | . . . Secondary . | . . . Self-Inflicted Damage 29 | . 29 . Shots 1 | . 1 . Rammed . | . . . Targets Rammed . | . . . Kicked . | . . . Crushed . | . . . Highest Temperature 70 | . 46 70 Average Temperature 20 | . 19 52 Received Heat Transfer 441 | . 309 132 Siege Activations . | . . . Martial Activations . | . . . Shielding Activations . | . . . Robots Disrupted . | . . . Combat Hostiles . | . . . Robots Corrupted . | . . . Combat Hostiles . | . . . Parts Fried . | . . . Impact Corruptions . | . . . Robots Melted . | . . . Combat Hostiles . | . . . Parts Melted . | . . . Heat Transferred 375 | . 100 275 Parts Sabotaged . | . . . Parts Stolen . | . . . Parts Stripped . | . . . Power Chain Reactions 1 | . 1 . Alert | -11 -10 -10 ------- Run | Yrd Mat Sub Maximum Alert Level . | . . . Low Security (%) 100 | 100 100 . Level 1 . | . . . Level 2 . | . . . Level 3 . | . . . Level 4 . | . . . Level 5 . | . . . High Security . | . . . Max Security . | . . . Peak Influence 192 | . 192 . Initial . | . . . Average 65 | . 70 . Influence Increases 583 | . 493 90 Destroy 0b10 Robot/C 340 | . 280 60 Destroy 0b10 Robot/NC 5 | . 5 . Destroy Leader 60 | . 60 . Successful Hack 21 | . 21 . Disable Machine 15 | . 15 . Destroy Structure 7 | . 7 . Lose Combat Pursuer 135 | . 105 30 Influence Decreases 559 | . 351 208 Entered New Map 69 | . . 69 Time Decay 437 | . 321 116 Lost Part 53 | . 30 23 Squads Dispatched 2 | . 2 . Investigation 1 | . 1 . Extermination . | . . . Reinforcement 1 | . 1 . Assault . | . . . Garrison . | . . . Intercept . | . . . Searches Triggered . | . . . Construction Impeded . | . . . Haulers Reinforced . | . . . Active Scanning Responses . | . . . Cargo Convoy Interrupts . | . . . Stealth | -11 -10 -10 --------- Run | Yrd Mat Sub Distress Signals 3 | . 3 . Communications Jammed . | . . . Distress Signals . | . . . Times Spotted 42 | . 30 12 Peak Tracking Total 5 | . 5 5 Tactical Retreats 6 | . 4 2 Traps | -11 -10 -10 ------- Run | Yrd Mat Sub Traps Triggered 3 | . 3 . Indirectly . | . . . Trap Hack Attempts . | . . . Triggered . | . . . Disarmed . | . . . Reprogrammed . | . . . Reused . | . . . Traps Extracted . | . . . Installed . | . . . Triggered . | . . . Machines | -11 -10 -10 ---------- Run | Yrd Mat Sub Machines Disabled 1 | . 1 . Max in Single Turn 1 | . 1 . Machines Repaired . | . . . Machines Dismantled . | . . . Machines Sabotaged . | . . . Overloaded Fab Kills . | . . . Hacking | -11 -10 -10 --------- Run | Yrd Mat Sub Machines Accessed 6 | . 6 . Terminals 5 | . 5 . Fabricators . | . . . Repair Stations . | . . . Recycling Units 1 | . 1 . Scanalyzers . | . . . Garrison Access . | . . . Total Hacks 16 | . 16 . Successful 10 | . 10 . Failed 6 | . 6 . Catastrophic 1 | . 1 . Database Lockouts . | . . . Manual 13 | . 13 . Terminals 14 | . 14 . Fabricators . | . . . Repair Stations . | . . . Recycling Units 2 | . 2 . Scanalyzers . | . . . Garrison Access . | . . . Terminal Hacks 6 | . 6 . Robot Analysis 2 | . 2 . Prototype ID Bank 2 | . 2 . Branch Access Points 1 | . 1 . Terminal Index 1 | . 1 . Fabricator Hacks . | . . . Repair Station Hacks . | . . . Recycling Unit Hacks . | . . . Scanalyzer . | . . . Garrison Access Hacks . | . . . Unauthorized Hacks 4 | . 4 . Terminals 4 | . 4 . Assimilate 1 | . 1 . Botnet 3 | . 3 . Fabricators . | . . . Repair Stations . | . . . Recycling Units . | . . . Scanalyzers . | . . . Garrison Access . | . . . Data Cores Recovered . | . . . Used . | . . . Hacking Detections 5 | . 5 . Full Trace Events . | . . . Feedback Events . | . . . Feedback Blocked . | . . . Robot Schematics Acquired . | . . . Robots Built . | . . . Authchips . | . . . Time . | . . . Total Robot Build Rating . | . . . Part Schematics Acquired . | . . . Parts Built . | . . . Authchips . | . . . Time . | . . . Total Part Build Rating . | . . . Parts Repaired . | . . . Time . | . . . Parts Recycled . | . . . Recycled Matter . | . . . Retrieved Matter . | . . . Retrieved Components . | . . . Parts Scanalyzed . | . . . Part Schematics Acquired . | . . . Parts Damaged . | . . . Bothacking | -11 -10 -10 ------------ Run | Yrd Mat Sub Used RIF Installer . | . . . Robots Hacked . | . . . Non-combat . | . . . Combat . | . . . Robot Hacks Applied . | . . . Relay Couplers Released . | . . . Fabnet Peak Effective % . | . . . Robots Rewired . | . . . Allies Hacked . | . . . Hacks Repelled . | . . . Allies | -11 -10 -10 -------- Run | Yrd Mat Sub Total Allies . | . . . Largest Group . | . . . Highest-Rated Group . | . . . Highest-Rated Ally . | . . . Total Orders . | . . . Ally Attacks . | . . . Total Damage . | . . . Kills . | . . . Allies Corrupted . | . . . Allies Melted . | . . . Intel | -11 -10 -10 ------- Run | Yrd Mat Sub Active Infowar (turns) . | . . . Robot Analysis Total 2 | . 2 . Derelict Logs Recovered 1 | . . 1 Drone Launches . | . . . Drone Recoveries . | . . . Exploration | -11 -10 -10 ------------- Run | Yrd Mat Sub Turns Passed 1990 | 85 1278 627 Spaces Moved 927 | 49 511 367 Core 3 | 3 . . Treads 624 | 46 511 67 Legs . | . . . Wheels 300 | . . 300 Hover . | . . . Flight . | . . . Fastest Speed 50 | 50 160 110 Average Speed 146 | 153 160 127 Slowest Speed 240 | 160 160 240 Overloaded Moves . | . . . Propulsion Burnouts . | . . . Robots Hopped . | . . . Potential Cave-ins . | . . . Cave-ins Triggered . | . . . Exploration Rate (%) 34 | 3 79 21 Regions Visited 2 Branch Regions 1 Pre-discovered Areas . | . . . Known Exits Taken . | . . . Unknown Exits Taken 2 | 1 1 . Scrap Searched 2 | . . 2 Spaces Dug . | . . . Terrain Destroyed 6 | . 6 . Melee . | . . . Projectile . | . . . AOE 6 | . 6 . Terrain Rammed . | . . . Walls Destroyed . | . . . Machines Disabled . | . . . Actions | -11 -10 -10 --------- Run | Yrd Mat Sub Total 1387 | 56 888 443 Wait 320 | . 311 9 Move 925 | 48 510 367 Hop . | . . . Pick Up 27 | 2 17 8 Fast Attach 8 | 6 1 1 Attach 9 | . 3 6 Detach . | . . . Swap 5 | . 1 4 Drop 6 | . 3 3 Fire 81 | . 42 39 Melee 6 | . . 6 Ram . | . . . Kick . | . . . Crush . | . . . Escape Stasis . | . . . Rewire . | . . . Trap . | . . . Miscellaneous . | . . . Route ------- -11/Scrapyard -10/Materials (discovered 4 exits: [*Mat x2] / *Min / [*Sub]) -10/Subcaves (discovered 2 exits: [*Mat] / *Rec) History --------- Turn | Location | Event 28 | -11/Scrapyard | Discovered new exit (range 16) 86 | -11/Scrapyard | Entered Materials 240 | -10/Materials | Identified exit to Mines 301 | -10/Materials | Build established: Mutant 664 | -10/Materials | Discovered new exit (range 6) 1003 | -10/Materials | Discovered new exit (range 16) 1168 | -10/Materials | Discovered new exit (range 14) 1240 | -10/Materials | Core integrity fell below 50% 1364 | -10/Materials | Entered Subcaves 1460 | -10/Subcaves | Discovered new exit (range 13) 1511 | -10/Subcaves | Core integrity fell below 20% 1580 | -10/Subcaves | Lost 6 parts (1p3n1u1w) 1660 | -10/Subcaves | Identified exit to Recycling 1991 | -10/Subcaves | Destroyed by DH-28T(R) with Subdweller Machine Gun Last Messages --------------- 01835_ Found Scrap Shield. 01835_ Found 49 Matter. 01838_ Acquired Scrap Shield. 01840_ Dropped EM Pulse Gun. 01840_ Dropped Lgt. Assault Rifle. 01841_ Acquired Scrap Shield. 01858_ System corrupted: FCS attempts to trigger Sub. Laser. 01858_ System corrupted: Sub. Laser misfires. 01861_ Lgt. Ion Engine destroyed. 01861_ S-10 Pest destroyed. 01879_ Lgt. Assault Rifle fries itself beyond repair. 01881_ S-10 Pest destroyed. 01884_ Acquired 18 matter. 01885_ Flight Unit fries itself beyond repair. 01973_ System corrupted: Matter fused (-10). 01984_ Lgt. Armor Plating destroyed. 01984_ Dropped Lrg. Storage Unit. 01987_ Acquired Assault Rifle. Map ----- +----------------------------------------------------+ | ?????????????????????????????????????????????????? | | ?????????????????????????????????????????????????? | | ?????????????????????????????????????????????????? | | ?????????????????????????????????????????????????? | | ?????????????????????????????????????????????????? | | ?????????????????????????????????????????????????? | | ???????????????????????????????####??????????????? | | ??????????????????????????????## ##?????????????? | | ???????????????????????????####[## ##????????????? | | ???????????????????????????#%# #### ######???????? | | ???????????????????????????##[##??##=##%[####????? | | ??????????????????????????## ##????##==##%= ##???? | | ??????????????????????????# ##??????###### #???? | | ??????????????????????????# #????????????# #???? | | ????????????????????????### #????????????# #???? | | ????????????????????????# ##???????????# #???? | | ????????????????????????# ###?????????# #???? | | ???????????????????##???## # ##????????# #???? | | ??????????????????## ???# #####????# [#???? | | ???????????? ????# ???# #????# %#???? | | ??????????? ### ??# #???? = ???? | | ????????????# #?# ## ##???? ???? | | ?????????????# ## ######????? ???? | | ?????????????# R !*!####?????????? ??? | | ??????????????????#### ![!##????????????? " " ??? | | ?????????????????????# ![@##?????????????"" """??? | | ?????????????????????## /[ ##????????????#?>?????? | | ??????????????????????## ##??###????????#?????? | | ??????????????????????## #### ##?????????????? | | ??????????????????????# #?????????????? | | ??????????????????????#### #?????????????? | | ????????????????# ???????# #?????????????? | | ????????????????#"???##### ##????????????? | | ???????????????##"??## ## ##???????????? | | ??????????????##" ### ## "#???????????? | | ???????????""?"""" ## " ""##???????????? | | ?????????? "###" # ###"" #????????????? | | ???????????#"" " ### "#?#"" #????????????? | | ???????????#"" " ##?# #### " ##????????????? | | ???????????""""""" #??# ###""" ##????????????? | | ????????????""" ## ##?###### "" ##???????????? | | ?????????????????# ###"###"""" ###?????????? | | ?????????????????## " "" """ ##????????? | | ??????????????????# """ " ""### #????????? | | ??????????????????# " ### """#?## #####????????? | | ??????????????????# "###?##"""#??###????????????? | | ???????#?""???????##" "#???##"##?????????????????? | | ??????## ""???????#"&""###??###??????????????????? | | ??????# " ??????##&"""""#???????????????????????? | | ??????# "" ??????# """ #???????????????????????? | +----------------------------------------------------+ Best States ------------- Heat Dissipation 25 Energy Generation 15 Energy Capacity 170 Matter Stores 300 Matter Capacity 300 Sight Range 16 Terrain Scan Density 10 Armor Coverage 800 Evasion (%) 40 Recoil Reduction 2 Item Schematics ----------------- None Robot Schematics ------------------ None Fabricated ------------ Nothing Repaired ---------- Nothing Alien Tech Used ----------------- None Achievements -------------- None Challenges ------------ None Game ------ Seed AntimissileShadeTurbovents Manual? 0 Play Time 00:17:14 Cumulative 216.1 hours Start 2025.05.24 @ 23:23:52 End 2025.05.24 @ 23:42:21 Sessions 1 Manual Loads 0 Difficulty Rogue Special Mode None Game No. 205 Rogue 205 Adventurer 0 Explorer 0 Win Type - Total 1 Types 1/0/0/0/0/0/0/0/0/0 Lore% 72 Gallery% 59 Achievement% 49 Wizard Run 0 Options --------- Layout 1 ASCII 0 Keyboard 0 Movement Mouse Keybinds 0 Fullscreen 1 Font 24/Smallcaps Map View 50x35 Zoom Use 0% Tactical HUD 1 Map Filters NONE Filters NONE Steam 1 RUN: 7bbcc9d2-9f41-42cf-8248-6cddf4c84239